[Event "EYCC Girls-U12 2019"]
[Site "Bratislava"]
[Date "2019.08.07"]
[Round "6.19"]
[White "Maria, Lia-Alexandra"]
[Black "Badaan, Rima"]
[Result "1-0"]
[ECO "C65"]
[WhiteElo "1572"]
[BlackElo "1269"]
[Annotator "NA"]
[PlyCount "145"]
[EventDate "2019.08.02"]
[EventType "swiss"]
[EventCountry "SVK"]
[SourceTitle "playchess.com"]
[Source "ChessBase"]
[SourceQuality "1"]
[TimeControl "40/5400+30:1800+30"]

1. e4 {[%emt 0:00:00]} e5 {[%emt 0:00:00]} 2. Nf3 {[%emt 0:00:00]} Nc6 {[%emt 0:00:00]} 3. Bb5 {[%emt 0:00:00]} Nf6 {[%emt 0:00:52]} 4. d3 {[%emt 0:00:02]} Bd6 {[%emt 0:01:25]} 5. O-O {[%emt 0:01:21]} a6 {[%emt 0:00:25]} 6. Ba4 {[%emt 0:00:06]} b5 {[%emt 0:00:15]} 7. Bb3 {[%emt 0:00:09]} Bc5 {[%emt 0:02:00]} 8. Nc3 {[%emt 0:01:19]} O-O {[%emt 0:02:03]} 9. Nd5 {[%emt 0:02:01]} h6 {[%emt 0:04:58]} 10. c3 {[%emt 0:04:00]} d6 {[%emt 0:02:23]} 11. h3 {[%emt 0:01:21]} Be6 {[%emt 0:01:08]} 12. d4 {[%emt 0:07:23]} exd4 {[%emt 0:19:25]} 13. cxd4 {[%emt 0:00:21]} Ba7 {[%emt 0:10:00]} 14. Nxf6+ {[%emt 0:01:47]} Qxf6 {[%emt 0:00:21]} 15. d5 {[%emt 0:00:13]} Bxh3 {[%emt 0:03:08]} 16. gxh3 {[%emt 0:14:13]} Ne5 {[%emt 0:03:00]} 17. Nxe5 {[%emt 0:04:02]} Qxe5 {[%emt 0:00:21]} 18. Qg4 {[%emt 0:03:49]} Qf6 {[%emt 0:03:08]} 19. Qg3 {[%emt 0:06:57]} Rfe8 {[%emt 0:03:57]} 20. Bc2 {[%emt 0:03:58]} Bd4 {[%emt 0:02:04]} 21. Rb1 {[%emt 0:04:07]} Re5 {[%emt 0:09:27]} 22. Kh1 {[%emt 0:04:06]} Rh5 {[%emt 0:02:23]} 23. Bd1 {[%emt 0:04:35]} Re5 {[%emt 0:00:44]} 24. Bf3 {[%emt 0:00:52]} Rae8 {[%emt 0:05:06]} 25. Bf4 {[%emt 0:03:12]} R5e7 {[%emt 0:01:55]} 26. Rg1 {[%emt 0:05:25]} Bxf2 {[%emt 0:04:02]} 27. Qxf2 {[%emt 0:02:32]} Qxf4 {[%emt 0:00:11]} 28. Rg4 {[%emt 0:01:39]} Qf6 {[%emt 0:02:34]} 29. Rbg1 {[%emt 0:02:45]} g6 {[%emt 0:05:06]} 30. Qg2 {[%emt 0:02:53]} Kh7 {[%emt 0:00:54]} 31. Rc1 {[%emt 0:04:07]} Rc8 {[%emt 0:02:34]} 32. Rc6 {[%emt 0:00:51]} Ra8 {[%emt 0:00:33]} 33. Qe2 {[%emt 0:01:53]} h5 {[%emt 0:00:52]} 34. Rg1 {[%emt 0:00:34]} Ra7 {[%emt 0:00:36]} 35. Qg2 {[%emt 0:05:16]} Ra8 {[%emt 0:00:58]} 36. Rgc1 {[%emt 0:00:19]} Ra7 {[%emt 0:00:27]} 37. R1c3 {[%emt 0:01:45]} Rd7 {[%emt 0:00:36]} 38. Qf2 {[%emt 0:00:37]} Ra8 {[%emt 0:02:35]} 39. Rxc7 {[%emt 0:01:27]} Rxc7 {[%emt 0:00:07]} 40. Rxc7 {[%emt 0:00:00]} Re8 {[%emt 0:00:00]} 41. Qg2 {[%emt 0:01:22]} Qf4 {[%emt 0:04:56]} 42. Rc6 {[%emt 0:03:39]} Ra8 {[%emt 0:00:55]} 43. Qe2 {[%emt 0:00:36]} Qg3 {[%emt 0:03:39]} 44. Bg2 {[%emt 0:00:37]} Qe5 {[%emt 0:02:03]} 45. Qf2 {[%emt 0:01:25]} Kg7 {[%emt 0:02:15]} 46. Rc7 {[%emt 0:00:44]} Rf8 {[%emt 0:07:19]} 47. Ra7 {[%emt 0:00:28]} a5 {[%emt 0:02:13]} 48. Rxa5 {[%emt 0:00:52]} Rc8 {[%emt 0:00:13]} 49. Qd2 {[%emt 0:01:38]} Rc5 {[%emt 0:05:16]} 50. Ra3 {[%emt 0:02:35]} b4 {[%emt 0:02:40]} 51. Rb3 {[%emt 0:00:09]} Ra5 {[%emt 0:02:06]} 52. a3 {[%emt 0:00:36]} Ra7 {[%emt 0:07:19]} 53. Rxb4 {[%emt 0:00:24]} Rc7 {[%emt 0:00:56]} 54. Rb3 {[%emt 0:00:48]} Kh7 {[%emt 0:01:12]} 55. Rc3 {[%emt 0:03:02]} Rb7 {[%emt 0:00:35]} 56. Qc2 {[%emt 0:01:57]} Qf6 {[%emt 0:01:03]} 57. Qd2 {[%emt 0:01:58]} Qe5 {[%emt 0:00:21]} 58. Qf2 {[%emt 0:00:34]} Kg7 {[%emt 0:00:28]} 59. a4 {[%emt 0:02:09]} Qe8 {[%emt 0:00:49]} 60. Qd4+ {[%emt 0:01:18]} Kh6 {[%emt 0:00:10]} 61. Rc6 {[%emt 0:01:23]} Rd7 {[%emt 0:00:06]} 62. b4 {[%emt 0:01:37]} Kh7 {[%emt 0:00:28]} 63. b5 {[%emt 0:00:32]} Rb7 {[%emt 0:00:20]} 64. Rxd6 {[%emt 0:00:33]} Rc7 {[%emt 0:00:28]} 65. Rc6 {[%emt 0:00:30]} Rc8 {[%emt 0:00:32]} 66. a5 {[%emt 0:01:10]} Ra8 {[%emt 0:00:32]} 67. a6 {[%emt 0:01:21]} Qd8 {[%emt 0:00:37]} 68. Qf6 {[%emt 0:01:22]} Qf8 {[%emt 0:00:36]} 69. d6 {[%emt 0:00:30]} Qe8 {[%emt 0:00:39]} 70. h4 {[%emt 0:01:07]} Ra7 {[%emt 0:00:25]} 71. Rc7 {[%emt 0:01:00]} Ra8 {[%emt 0:00:46]} 72. Rxf7+ {[%emt 0:00:11]} Kh6 {[%emt 0:00:22]} 73. Qg5# {[%emt 0:00:07]} 1-0

[Event "EYCC Girls-U12 2019"]
[Site "Bratislava"]
[Date "2019.08.07"]
[Round "6.20"]
[White "Selvik, Elma"]
[Black "Suarez Gomez, Paula"]
[Result "0-1"]
[ECO "C01"]
[WhiteElo "1496"]
[BlackElo "1438"]
[Annotator "NA"]
[PlyCount "106"]
[EventDate "2019.08.02"]
[EventType "swiss"]
[EventCountry "SVK"]
[SourceTitle "playchess.com"]
[Source "ChessBase"]
[SourceQuality "1"]
[TimeControl "40/5400+30:1800+30"]

1. e4 {[%emt 0:00:00]} e6 {[%emt 0:00:00]} 2. d4 {[%emt 0:00:00]} d5 {[%emt 0:00:00]} 3. exd5 {[%emt 0:00:03]} exd5 {[%emt 0:00:00]} 4. Bd3 {[%emt 0:00:19]} Bd6 {[%emt 0:00:50]} 5. Qf3 {[%emt 0:01:02]} Ne7 {[%emt 0:07:01]} 6. Ne2 {[%emt 0:06:00]} Nbc6 {[%emt 0:03:26]} 7. c3 {[%emt 0:03:36]} Be6 {[%emt 0:07:40]} 8. Bf4 {[%emt 0:07:13]} Ng6 {[%emt 0:04:16]} 9. Bxd6 {[%emt 0:16:05]} Qxd6 {[%emt 0:00:26]} 10. O-O {[%emt 0:07:20]} O-O-O {[%emt 0:03:59]} 11. Nd2 {[%emt 0:02:56]} Nge7 {[%emt 0:16:42]} 12. Qf4 {[%emt 0:07:25]} h6 {[%emt 0:08:36]} 13. Qxd6 {[%emt 0:04:52]} Rxd6 {[%emt 0:00:27]} 14. Nf4 {[%emt 0:03:05]} Bf5 {[%emt 0:06:21]} 15. Be2 {[%emt 0:05:45]} g5 {[%emt 0:07:53]} 16. Nh5 {[%emt 0:07:02]} Ng8 {[%emt 0:07:56]} 17. Ng3 {[%emt 0:03:37]} Bh7 {[%emt 0:02:38]} 18. Bh5 {[%emt 0:05:36]} f5 {[%emt 0:03:00]} 19. Rfe1 {[%emt 0:03:15]} f4 {[%emt 0:06:23]} 20. Re8+ {[%emt 0:08:12]} Rd8 {[%emt 0:04:13]} 21. Bg4+ {[%emt 0:02:11]} Kb8 {[%emt 0:00:06]} 22. Rxd8+ {[%emt 0:00:43]} Nxd8 {[%emt 0:00:04]} 23. Ngf1 {[%emt 0:01:44]} Nf6 {[%emt 0:00:46]} 24. h3 {[%emt 0:02:35]} Nxg4 {[%emt 0:01:50]} 25. hxg4 {[%emt 0:00:07]} Re8 {[%emt 0:01:18]} 26. Nh2 {[%emt 0:00:29]} Re2 {[%emt 0:02:13]} 27. Nhf3 {[%emt 0:00:06]} Be4 {[%emt 0:00:22]} 28. Rd1 {[%emt 0:01:25]} Nf7 {[%emt 0:01:13]} 29. Kf1 {[%emt 0:00:52]} Bd3 {[%emt 0:00:35]} 30. Kg1 {[%emt 0:00:09]} Kc8 {[%emt 0:00:26]} 31. Re1 {[%emt 0:00:19]} Kd7 {[%emt 0:00:37]} 32. Rxe2 {[%emt 0:00:38]} Bxe2 {[%emt 0:00:05]} 33. Nb3 {[%emt 0:00:37]} b6 {[%emt 0:01:07]} 34. Kh2 {[%emt 0:00:44]} Bxf3 {[%emt 0:00:49]} 35. gxf3 {[%emt 0:00:04]} Nd6 {[%emt 0:00:36]} 36. Kg2 {[%emt 0:00:40]} Nc4 {[%emt 0:00:16]} 37. Nc1 {[%emt 0:01:01]} Nxb2 {[%emt 0:00:19]} 38. Ne2 {[%emt 0:00:31]} Kc6 {[%emt 0:00:26]} 39. Kf1 {[%emt 0:00:31]} Kb5 {[%emt 0:00:18]} 40. Ke1 {[%emt 0:00:00]} Kc4 {[%emt 0:00:00]} 41. Kd2 {[%emt 0:05:47]} Nd3 {[%emt 0:05:58]} 42. Kc2 {[%emt 0:01:51]} Ne1+ {[%emt 0:01:34]} 43. Kd2 {[%emt 0:12:44]} Nxf3+ {[%emt 0:00:32]} 44. Kc2 {[%emt 0:00:58]} Nh2 {[%emt 0:01:10]} 45. Ng1 {[%emt 0:01:35]} Nxg4 {[%emt 0:00:57]} 46. Nh3 {[%emt 0:02:03]} Nf6 {[%emt 0:04:17]} 47. Kd2 {[%emt 0:03:25]} Ne4+ {[%emt 0:00:16]} 48. Kc2 {[%emt 0:02:27]} Nxc3 {[%emt 0:00:05]} 49. Kb2 {[%emt 0:00:56]} Kxd4 {[%emt 0:00:25]} 50. a3 {[%emt 0:01:25]} Nb5 {[%emt 0:00:35]} 51. Kb3 {[%emt 0:00:34]} c5 {[%emt 0:00:29]} 52. Ka4 {[%emt 0:01:22]} Kc4 {[%emt 0:00:19]} 53. Ng1 {[%emt 0:01:14]} Nc3# {[%emt 0:00:10]} 0-1

[Event "EYCC Girls-U12 2019"]
[Site "Bratislava"]
[Date "2019.08.07"]
[Round "6.21"]
[White "Lomakina, Anzhelika"]
[Black "Mikhailina, Olga"]
[Result "0-1"]
[ECO "B33"]
[WhiteElo "1752"]
[BlackElo "1410"]
[Annotator "NA"]
[PlyCount "112"]
[EventDate "2019.08.02"]
[EventType "swiss"]
[EventCountry "SVK"]
[SourceTitle "playchess.com"]
[Source "ChessBase"]
[SourceQuality "1"]
[TimeControl "40/5400+30:1800+30"]

1. e4 {[%emt 0:00:00]} c5 {[%emt 0:00:00]} 2. Nf3 {[%emt 0:00:00]} Nc6 {[%emt 0:00:00]} 3. d4 {[%emt 0:00:00]} cxd4 {[%emt 0:00:00]} 4. Nxd4 {[%emt 0:00:00]} Nf6 {[%emt 0:00:00]} 5. Nc3 {[%emt 0:00:00]} e6 {[%emt 0:00:00]} 6. Ndb5 {[%emt 0:00:00]} Bb4 {[%emt 0:00:09]} 7. a3 {[%emt 0:00:04]} Bxc3+ {[%emt 0:00:09]} 8. Nxc3 {[%emt 0:00:02]} d5 {[%emt 0:03:39]} 9. exd5 {[%emt 0:00:13]} exd5 {[%emt 0:16:01]} 10. Bd3 {[%emt 0:00:14]} O-O {[%emt 0:01:01]} 11. O-O {[%emt 0:00:08]} h6 {[%emt 0:10:21]} 12. h3 {[%emt 0:04:39]} d4 {[%emt 0:02:12]} 13. Ne2 {[%emt 0:01:56]} a6 {[%emt 0:10:02]} 14. b4 {[%emt 0:05:30]} b5 {[%emt 0:19:33]} 15. Bb2 {[%emt 0:03:59]} Kh8 {[%emt 0:00:39]} 16. a4 {[%emt 0:14:54]} Bb7 {[%emt 0:04:39]} 17. axb5 {[%emt 0:04:09]} axb5 {[%emt 0:00:03]} 18. Bxb5 {[%emt 0:13:24]} Nxb4 {[%emt 0:01:03]} 19. Nxd4 {[%emt 0:03:16]} Qd5 {[%emt 0:03:00]} 20. f3 {[%emt 0:08:40]} Nc6 {[%emt 0:05:02]} 21. c4 {[%emt 0:13:48]} Qc5 {[%emt 0:06:29]} 22. Kh1 {[%emt 0:03:30]} Rxa1 {[%emt 0:08:21]} 23. Qxa1 {[%emt 0:05:07]} Ra8 {[%emt 0:00:15]} 24. Qd1 {[%emt 0:00:57]} Rd8 {[%emt 0:00:55]} 25. Bxc6 {[%emt 0:02:00]} Bxc6 {[%emt 0:00:11]} 26. Qd3 {[%emt 0:00:35]} Nh5 {[%emt 0:05:07]} 27. Re1 {[%emt 0:03:12]} Nf4 {[%emt 0:02:50]} 28. Qf5 {[%emt 0:04:37]} Qxf5 {[%emt 0:00:07]} 29. Nxf5 {[%emt 0:00:07]} Ne6 {[%emt 0:00:30]} 30. Nxh6 {[%emt 0:01:58]} Be8 {[%emt 0:01:02]} 31. Nf5 {[%emt 0:00:48]} Kh7 {[%emt 0:00:44]} 32. Kg1 {[%emt 0:01:48]} Ba4 {[%emt 0:01:19]} 33. Rc1 {[%emt 0:03:03]} Nf4 {[%emt 0:00:29]} 34. Kf1 {[%emt 0:02:33]} Nd3 {[%emt 0:00:13]} 35. Ke2 {[%emt 0:01:47]} Nxc1+ {[%emt 0:00:19]} 36. Bxc1 {[%emt 0:00:08]} Bb3 {[%emt 0:00:41]} 37. c5 {[%emt 0:00:39]} Rd5 {[%emt 0:00:39]} 38. g4 {[%emt 0:00:41]} Rxc5 {[%emt 0:00:27]} 39. Be3 {[%emt 0:00:03]} Rc2+ {[%emt 0:00:41]} 40. Kd3 {[%emt 0:00:00]} Rh2 {[%emt 0:00:00]} 41. Nd4 {[%emt 0:08:04]} Bd5 {[%emt 0:09:03]} 42. Bf4 {[%emt 0:02:56]} Rxh3 {[%emt 0:04:27]} 43. Ke3 {[%emt 0:00:09]} Rh1 {[%emt 0:00:55]} 44. Bg3 {[%emt 0:01:07]} Rb1 {[%emt 0:03:25]} 45. Kf4 {[%emt 0:02:52]} Kg6 {[%emt 0:03:19]} 46. Bf2 {[%emt 0:01:00]} Rb4 {[%emt 0:03:51]} 47. Be3 {[%emt 0:01:50]} f6 {[%emt 0:05:13]} 48. Bf2 {[%emt 0:02:39]} Ra4 {[%emt 0:00:54]} 49. Be3 {[%emt 0:01:43]} Kf7 {[%emt 0:03:46]} 50. Kg3 {[%emt 0:00:52]} Be6 {[%emt 0:00:34]} 51. Bf2 {[%emt 0:01:40]} g5 {[%emt 0:00:27]} 52. Be3 {[%emt 0:00:49]} Bd7 {[%emt 0:00:32]} 53. f4 {[%emt 0:05:13]} Ra3 {[%emt 0:00:29]} 54. Kf2 {[%emt 0:06:08]} gxf4 {[%emt 0:00:21]} 55. Bxf4 {[%emt 0:00:03]} Bxg4 {[%emt 0:00:17]} 56. Nb5 {[%emt 0:00:27]} Rf3+ {[%emt 0:00:30]} 0-1

[Event "EYCC Girls-U12 2019"]
[Site "Bratislava"]
[Date "2019.08.07"]
[Round "6.22"]
[White "Putinceva, Marina"]
[Black "Kapicakova, Lucia"]
[Result "1-0"]
[ECO "B10"]
[WhiteElo "1476"]
[BlackElo "1671"]
[Annotator "NA"]
[PlyCount "115"]
[EventDate "2019.08.02"]
[EventType "swiss"]
[EventCountry "SVK"]
[SourceTitle "playchess.com"]
[Source "ChessBase"]
[SourceQuality "1"]
[TimeControl "40/5400+30:1800+30"]

1. e4 {[%emt 0:00:00]} c6 {[%emt 0:00:00]} 2. Nf3 {[%emt 0:00:00]} d5 {[%emt 0:00:00]} 3. exd5 {[%emt 0:00:00]} cxd5 {[%emt 0:00:00]} 4. Ne5 {[%emt 0:00:00]} Nc6 {[%emt 0:00:18]} 5. d4 {[%emt 0:00:01]} Nf6 {[%emt 0:00:30]} 6. Bb5 {[%emt 0:00:19]} Bd7 {[%emt 0:00:23]} 7. Nxd7 {[%emt 0:00:27]} Qxd7 {[%emt 0:00:16]} 8. c3 {[%emt 0:00:30]} a6 {[%emt 0:00:24]} 9. Bd3 {[%emt 0:00:10]} e6 {[%emt 0:00:28]} 10. Nd2 {[%emt 0:03:55]} Bd6 {[%emt 0:01:14]} 11. O-O {[%emt 0:00:45]} O-O {[%emt 0:00:58]} 12. Re1 {[%emt 0:04:03]} b5 {[%emt 0:03:04]} 13. a3 {[%emt 0:02:54]} Qc7 {[%emt 0:05:53]} 14. Nf3 {[%emt 0:07:20]} Rab8 {[%emt 0:06:41]} 15. Qe2 {[%emt 0:08:48]} Na5 {[%emt 0:09:00]} 16. Bg5 {[%emt 0:03:11]} Nd7 {[%emt 0:11:31]} 17. Bh4 {[%emt 0:02:29]} h6 {[%emt 0:03:04]} 18. Bg3 {[%emt 0:02:31]} Bxg3 {[%emt 0:01:46]} 19. hxg3 {[%emt 0:00:45]} Nc4 {[%emt 0:04:37]} 20. g4 {[%emt 0:09:58]} Qf4 21. Ne5 {[%emt 0:03:20]} Ndxe5 {[%emt 0:16:46]} 22. dxe5 {[%emt 0:00:42]} Qd2 {[%emt 0:03:04]} 23. Bxc4 {[%emt 0:00:23]} Qg5 {[%emt 0:07:38]} 24. Bd3 {[%emt 0:03:47]} Rfd8 {[%emt 0:02:55]} 25. Rad1 {[%emt 0:03:16]} Rd7 {[%emt 0:02:19]} 26. f3 {[%emt 0:11:30]} g6 {[%emt 0:06:14]} 27. Qe3 {[%emt 0:02:27]} Qh4 {[%emt 0:00:59]} 28. Qf2 {[%emt 0:07:06]} Qg5 {[%emt 0:01:15]} 29. Qc5 {[%emt 0:01:31]} Kg7 {[%emt 0:01:52]} 30. Qe3 {[%emt 0:04:16]} Qh4 {[%emt 0:00:54]} 31. Qf2 {[%emt 0:00:53]} Qg5 {[%emt 0:01:07]} 32. g3 {[%emt 0:00:36]} Rh8 {[%emt 0:01:21]} 33. Qe3 {[%emt 0:00:51]} Qd8 {[%emt 0:01:42]} 34. Kg2 {[%emt 0:00:43]} d4 {[%emt 0:03:08]} 35. cxd4 {[%emt 0:00:09]} Rxd4 {[%emt 0:00:11]} 36. Be2 {[%emt 0:00:24]} Rxd1 {[%emt 0:01:48]} 37. Rxd1 {[%emt 0:00:00]} Qc7 {[%emt 0:01:07]} 38. Rc1 {[%emt 0:00:45]} Qd7 {[%emt 0:01:04]} 39. Qd3 {[%emt 0:03:24]} Qb7 {[%emt 0:01:08]} 40. Qd6 {[%emt 0:00:00]} Rc8 {[%emt 0:00:00]} 41. Rxc8 {[%emt 0:14:07]} Qxc8 {[%emt 0:02:27]} 42. Qd2 {[%emt 0:03:47]} Qc7 {[%emt 0:03:22]} 43. Qc3 {[%emt 0:01:42]} Qb6 {[%emt 0:00:58]} 44. Bd1 {[%emt 0:06:10]} a5 {[%emt 0:01:16]} 45. b4 {[%emt 0:01:37]} axb4 {[%emt 0:01:01]} 46. axb4 {[%emt 0:01:31]} Qd8 {[%emt 0:01:45]} 47. Be2 {[%emt 0:00:36]} Qd5 {[%emt 0:03:38]} 48. Qc5 {[%emt 0:00:14]} Qd2 {[%emt 0:01:14]} 49. Qxb5 {[%emt 0:02:28]} h5 {[%emt 0:01:06]} 50. gxh5 {[%emt 0:01:12]} gxh5 {[%emt 0:00:23]} 51. Qc4 {[%emt 0:00:53]} f6 {[%emt 0:02:06]} 52. exf6+ {[%emt 0:00:17]} Kf7 {[%emt 0:01:18]} 53. Kf2 {[%emt 0:12:39]} Qb2 {[%emt 0:02:34]} 54. Qh4 {[%emt 0:03:16]} Kg6 {[%emt 0:01:55]} 55. f7 {[%emt 0:00:06]} Kxf7 {[%emt 0:00:32]} 56. Qxh5+ {[%emt 0:00:04]} Ke7 {[%emt 0:00:48]} 57. Qc5+ {[%emt 0:00:33]} Kf7 {[%emt 0:00:49]} 58. b5 {[%emt 0:00:25]} 1-0

[Event "EYCC Girls-U12 2019"]
[Site "Bratislava"]
[Date "2019.08.07"]
[Round "6.23"]
[White "Salajan, Stefania"]
[Black "Kalenichenko, Alina"]
[Result "1-0"]
[ECO "A45"]
[WhiteElo "1482"]
[BlackElo "1549"]
[Annotator "NA"]
[PlyCount "39"]
[EventDate "2019.08.02"]
[EventType "swiss"]
[EventCountry "SVK"]
[SourceTitle "playchess.com"]
[Source "ChessBase"]
[SourceQuality "1"]
[TimeControl "40/5400+30:1800+30"]

1. d4 {[%emt 0:00:00]} Nf6 {[%emt 0:00:00]} 2. Bf4 {[%emt 0:00:00]} g6 {[%emt 0:00:10]} 3. Nc3 {[%emt 0:00:20]} d5 {[%emt 0:00:20]} 4. e3 {[%emt 0:00:22]} Bg7 {[%emt 0:00:34]} 5. h4 {[%emt 0:00:18]} O-O {[%emt 0:00:13]} 6. h5 {[%emt 0:00:51]} gxh5 {[%emt 0:10:40]} 7. Bd3 {[%emt 0:01:17]} c5 {[%emt 0:04:10]} 8. Nf3 {[%emt 0:13:46]} Bg4 {[%emt 0:01:57]} 9. Be2 {[%emt 0:00:59]} Ne4 {[%emt 0:12:25]} 10. Nxe4 {[%emt 0:10:33]} dxe4 {[%emt 0:00:07]} 11. Ne5 {[%emt 0:04:21]} cxd4 {[%emt 0:07:06]} 12. exd4 {[%emt 0:09:13]} Nc6 {[%emt 0:03:01]} 13. Nxc6 {[%emt 0:04:14]} bxc6 {[%emt 0:00:32]} 14. Bxg4 {[%emt 0:05:12]} hxg4 {[%emt 0:00:14]} 15. Qxg4 {[%emt 0:03:26]} Qxd4 {[%emt 0:04:37]} 16. Qh5 {[%emt 0:09:47]} Rfd8 {[%emt 0:06:21]} 17. c3 {[%emt 0:12:50]} Qd5 {[%emt 0:09:46]} 18. Qxh7+ {[%emt 0:01:22]} Kf8 {[%emt 0:00:42]} 19. Bh6 {[%emt 0:02:48]} Qe5 {[%emt 0:09:50]} 20. Qh8# {[%emt 0:00:16]} 1-0

[Event "EYCC Girls-U12 2019"]
[Site "Bratislava"]
[Date "2019.08.07"]
[Round "6.24"]
[White "Smirnova, Jekaterina"]
[Black "Korovina, Yana"]
[Result "0-1"]
[ECO "C47"]
[WhiteElo "1372"]
[BlackElo "1602"]
[Annotator "NA"]
[PlyCount "68"]
[EventDate "2019.08.02"]
[EventType "swiss"]
[EventCountry "SVK"]
[SourceTitle "playchess.com"]
[Source "ChessBase"]
[SourceQuality "1"]
[TimeControl "40/5400+30:1800+30"]

1. e4 {[%emt 0:00:00]} e5 {[%emt 0:00:00]} 2. Nf3 {[%emt 0:00:00]} Nf6 {[%emt 0:00:00]} 3. Nc3 {[%emt 0:00:00]} Nc6 {[%emt 0:00:10]} 4. Bc4 {[%emt 0:00:14]} Nxe4 {[%emt 0:00:33]} 5. Bxf7+ {[%emt 0:01:55]} Kxf7 {[%emt 0:00:11]} 6. Nxe4 {[%emt 0:00:07]} d5 {[%emt 0:00:32]} 7. Neg5+ {[%emt 0:03:13]} Kg8 {[%emt 0:02:15]} 8. d3 {[%emt 0:00:13]} h6 {[%emt 0:00:49]} 9. Nh3 {[%emt 0:01:04]} Bc5 {[%emt 0:01:48]} 10. c3 {[%emt 0:02:37]} Bg4 {[%emt 0:02:46]} 11. Be3 {[%emt 0:01:54]} Bb6 {[%emt 0:02:16]} 12. Nhg1 {[%emt 0:04:33]} Bxe3 {[%emt 0:22:09]} 13. fxe3 {[%emt 0:00:14]} e4 {[%emt 0:00:17]} 14. dxe4 {[%emt 0:00:46]} dxe4 {[%emt 0:00:05]} 15. Qb3+ {[%emt 0:00:11]} Kh7 {[%emt 0:00:11]} 16. Qc2 {[%emt 0:20:46]} Qe7 {[%emt 0:04:45]} 17. Ne2 {[%emt 0:06:12]} Rhf8 {[%emt 0:10:51]} 18. Rf1 {[%emt 0:02:45]} Kh8 {[%emt 0:03:45]} 19. Nf4 {[%emt 0:12:20]} Rxf4 {[%emt 0:04:06]} 20. exf4 {[%emt 0:01:09]} exf3+ {[%emt 0:00:12]} 21. Kf2 {[%emt 0:03:29]} Qc5+ {[%emt 0:02:30]} 22. Kg3 {[%emt 0:03:29]} Qh5 {[%emt 0:03:00]} 23. Qf2 {[%emt 0:07:06]} Ne7 {[%emt 0:02:04]} 24. h3 {[%emt 0:01:49]} Nf5+ {[%emt 0:00:42]} 25. Kh2 {[%emt 0:00:36]} fxg2 {[%emt 0:00:13]} 26. Qxg2 {[%emt 0:04:14]} Ne3 {[%emt 0:00:40]} 27. Qg3 {[%emt 0:00:30]} Nxf1+ {[%emt 0:00:29]} 28. Rxf1 {[%emt 0:00:07]} Bf5 {[%emt 0:00:41]} 29. Rg1 {[%emt 0:00:19]} Qf7 {[%emt 0:00:30]} 30. Qf3 {[%emt 0:00:35]} c6 {[%emt 0:00:18]} 31. Qe3 {[%emt 0:01:00]} Re8 {[%emt 0:02:03]} 32. Qd2 {[%emt 0:00:45]} Qh5 {[%emt 0:00:58]} 33. Rg2 {[%emt 0:01:10]} Qxh3+ {[%emt 0:00:47]} 34. Kg1 {[%emt 0:00:05]} Qe3+ {[%emt 0:01:07]} 0-1

[Event "EYCC Girls-U12 2019"]
[Site "Bratislava"]
[Date "2019.08.08"]
[Round "7.1"]
[White "Karaivanova, Petya"]
[Black "Shvedova, Alexandra"]
[Result "1-0"]
[ECO "B90"]
[WhiteElo "1792"]
[BlackElo "1932"]
[Annotator "NA"]
[PlyCount "93"]
[EventDate "2019.08.02"]
[EventType "swiss"]
[EventCountry "SVK"]
[SourceTitle "playchess.com"]
[Source "ChessBase"]
[SourceQuality "1"]
[TimeControl "40/5400+30:1800+30"]

1. e4 {[%emt 0:00:00]} c5 {[%emt 0:00:00]} 2. Nf3 {[%emt 0:00:00]} d6 {[%emt 0:00:00]} 3. d4 {[%emt 0:00:00]} cxd4 {[%emt 0:00:00]} 4. Nxd4 {[%emt 0:00:00]} Nf6 {[%emt 0:00:00]} 5. Nc3 {[%emt 0:00:00]} a6 {[%emt 0:00:00]} 6. Be3 {[%emt 0:00:00]} e6 {[%emt 0:00:00]} 7. f3 {[%emt 0:00:33]} b5 {[%emt 0:00:05]} 8. Qd2 {[%emt 0:00:57]} Nbd7 {[%emt 0:00:06]} 9. g4 {[%emt 0:00:57]} h6 {[%emt 0:00:30]} 10. a3 {[%emt 0:02:02]} Bb7 {[%emt 0:00:37]} 11. O-O-O {[%emt 0:02:06]} Rc8 {[%emt 0:01:05]} 12. h4 {[%emt 0:11:21]} d5 {[%emt 0:04:50]} 13. exd5 {[%emt 0:03:51]} Nxd5 {[%emt 0:00:40]} 14. Nxd5 {[%emt 0:07:27]} Bxd5 {[%emt 0:00:11]} 15. Be2 {[%emt 0:01:56]} Nc5 {[%emt 0:05:37]} 16. Kb1 {[%emt 0:02:19]} Qc7 {[%emt 0:20:43]} 17. g5 {[%emt 0:10:50]} Na4 {[%emt 0:10:44]} 18. gxh6 {[%emt 0:12:17]} gxh6 {[%emt 0:03:37]} 19. Bf4 {[%emt 0:08:04]} Qb6 {[%emt 0:02:20]} 20. Be5 {[%emt 0:01:20]} Rg8 {[%emt 0:02:32]} 21. Rhg1 {[%emt 0:02:22]} Rxg1 {[%emt 0:01:58]} 22. Rxg1 {[%emt 0:00:05]} b4 {[%emt 0:00:10]} 23. Rg8 {[%emt 0:13:09]} Nc3+ {[%emt 0:15:35]} 24. Ka1 {[%emt 0:00:52]} bxa3 {[%emt 0:04:44]} 25. b3 {[%emt 0:05:34]} Nxe2 {[%emt 0:09:31]} 26. Nxe2 {[%emt 0:02:31]} Kd7 {[%emt 0:04:15]} 27. Qf4 {[%emt 0:02:11]} Qb4 {[%emt 0:02:13]} 28. Qxf7+ {[%emt 0:02:15]} Be7 {[%emt 0:00:12]} 29. Rxc8 {[%emt 0:01:45]} Kxc8 {[%emt 0:04:52]} 30. Qe8+ {[%emt 0:00:13]} Bd8 {[%emt 0:00:06]} 31. Bf6 {[%emt 0:03:01]} Qe1+ {[%emt 0:01:49]} 32. Ka2 {[%emt 0:00:05]} Qxe2 {[%emt 0:00:10]} 33. Qxd8+ {[%emt 0:00:04]} Kb7 {[%emt 0:00:04]} 34. Qd7+ {[%emt 0:00:40]} Kb8 {[%emt 0:00:08]} 35. Qd8+ {[%emt 0:00:41]} Kb7 {[%emt 0:00:17]} 36. Qd7+ {[%emt 0:01:32]} Kb8 {[%emt 0:00:10]} 37. Kxa3 {[%emt 0:02:31]} Qe3 {[%emt 0:04:39]} 38. Qd6+ {[%emt 0:00:21]} Kb7 {[%emt 0:00:53]} 39. Qd7+ {[%emt 0:00:59]} Kb8 {[%emt 0:00:18]} 40. Qe8+ {[%emt 0:00:00]} Ka7 {[%emt 0:00:00]} 41. Qd7+ {[%emt 0:04:48]} Kb8 {[%emt 0:16:07]} 42. Qd6+ {[%emt 0:04:38]} Kb7 {[%emt 0:00:25]} 43. Be5 {[%emt 0:05:53]} Qc1+ {[%emt 0:01:03]} 44. Kb4 {[%emt 0:02:24]} Qd2+ {[%emt 0:06:21]} 45. c3 {[%emt 0:02:51]} a5+ {[%emt 0:00:38]} 46. Kb5 {[%emt 0:02:03]} Qd3+ {[%emt 0:03:52]} 47. Kxa5 {[%emt 0:01:31]} 1-0